[Event "*** Titled Tuesday Blitz"]
[Site "Chess.com"]
[Date "2018.08.07"]
[Round "10"]
[White "Zaven_ChessMood"]
[Black "nihalsarin"]
[Result "1-0"]
[WhiteElo "2887"]
[BlackElo "2757"]
[TimeControl "180+2"]
[EndTime "15:16:03 PDT"]
[Termination "Zaven_ChessMood won by resignation"]

1. e4 {[%clk 0:02:59]} 1... c5 {[%clk 0:03:01]} 2. Nf3 {[%clk 0:02:57.8]} 2...
d6 {[%clk 0:03:02.6]} 3. d4 {[%clk 0:02:58.6]} 3... cxd4 {[%clk 0:03:04.5]} 4.
Nxd4 {[%clk 0:03:00.3]} 4... Nf6 {[%clk 0:03:06.1]} 5. Nc3 {[%clk 0:03:02]} 5...
g6 {[%clk 0:03:07.6]} 6. h3 {[%clk 0:03:03.5]} 6... Bg7 {[%clk 0:03:08.9]} 7.
Be3 {[%clk 0:03:03.1]} 7... O-O {[%clk 0:03:10.4]} 8. Qd2 {[%clk 0:03:04.6]}
8... Nc6 {[%clk 0:03:11.9]} 9. O-O-O {[%clk 0:03:05.5]} 9... Nxd4 {[%clk
0:03:04.2]} 10. Bxd4 {[%clk 0:03:06.1]} 10... Be6 {[%clk 0:03:06.1]} 11. f4
{[%clk 0:03:05.1]} 11... Rc8 {[%clk 0:03:05.8]} 12. Bd3 {[%clk 0:03:04.9]} 12...
Qa5 {[%clk 0:03:04]} 13. Kb1 {[%clk 0:03:05.3]} 13... Rfe8 {[%clk 0:02:12.5]}
14. a3 {[%clk 0:03:03.1]} 14... Bc4 {[%clk 0:01:59.8]} 15. g4 {[%clk 0:03:02.1]}
15... e5 {[%clk 0:01:53.3]} 16. Be3 {[%clk 0:02:59.9]} 16... exf4 {[%clk
0:01:52.7]} 17. Bxf4 {[%clk 0:03:00.8]} 17... d5 {[%clk 0:01:53.9]} 18. Nxd5
{[%clk 0:02:55]} 18... Qxd2 {[%clk 0:01:40.9]} 19. Nxf6+ {[%clk 0:02:55.8]}
19... Bxf6 {[%clk 0:01:42.6]} 20. Rxd2 {[%clk 0:02:57.3]} 20... Be6 {[%clk
0:01:36.9]} 21. Rhd1 {[%clk 0:02:54.3]} 21... Kg7 {[%clk 0:01:37]} 22. Bb5
{[%clk 0:02:50.6]} 22... Red8 {[%clk 0:01:38]} 23. Bd7 {[%clk 0:02:47.8]} 23...
Rxd7 {[%clk 0:01:31.9]} 24. Rxd7 {[%clk 0:02:48.2]} 24... Bxd7 {[%clk
0:01:33.8]} 25. Rxd7 {[%clk 0:02:49.4]} 25... Rc4 {[%clk 0:01:35.7]} 26. g5
{[%clk 0:02:47.3]} 26... Rxe4 {[%clk 0:01:33.9]} 27. gxf6+ {[%clk 0:02:47.8]}
27... Kxf6 {[%clk 0:01:35.8]} 28. Bd2 {[%clk 0:02:48.2]} 28... Ke6 {[%clk
0:01:35.2]} 29. Rxb7 {[%clk 0:02:49]} 29... Re2 {[%clk 0:01:36.2]} 30. Kc1
{[%clk 0:02:46.9]} 30... Rxd2 {[%clk 0:01:32.9]} 31. Kxd2 {[%clk 0:02:47.6]} 1-0

[Event "*** Titled Tuesday Blitz"]
[Site "Chess.com"]
[Date "2018.08.07"]
[Round "10"]
[White "TijanaBlagojevic"]
[Black "nailbeshirli"]
[Result "0-1"]
[WhiteElo "2361"]
[BlackElo "2516"]
[TimeControl "180+2"]
[EndTime "15:16:46 PDT"]
[Termination "nailbeshirli won by resignation"]

1. f4 {[%clk 0:03:01.9]} 1... c5 {[%clk 0:02:49.4]} 2. Nf3 {[%clk 0:02:57.2]}
2... Na6 {[%clk 0:02:51.3]} 3. e4 {[%clk 0:02:53.9]} 3... Nc7 {[%clk 0:02:53.2]}
4. c3 {[%clk 0:02:54.8]} 4... d6 {[%clk 0:02:55.1]} 5. d4 {[%clk 0:02:55.4]}
5... cxd4 {[%clk 0:02:56.7]} 6. cxd4 {[%clk 0:02:57.3]} 6... g6 {[%clk 0:02:58]}
7. Nc3 {[%clk 0:02:57.9]} 7... Bg7 {[%clk 0:02:59.6]} 8. d5 {[%clk 0:02:59.3]}
8... Nf6 {[%clk 0:02:59.9]} 9. Be2 {[%clk 0:03:00.2]} 9... O-O {[%clk
0:03:01.5]} 10. O-O {[%clk 0:03:01]} 10... Rb8 {[%clk 0:03:02.6]} 11. Be3 {[%clk
0:03:02]} 11... b6 {[%clk 0:03:03.5]} 12. Bd4 {[%clk 0:03:02.6]} 12... Bb7
{[%clk 0:03:03.2]} 13. a4 {[%clk 0:03:03.8]} 13... Re8 {[%clk 0:03:03]} 14. b4
{[%clk 0:03:04.9]} 14... e6 {[%clk 0:03:03.8]} 15. dxe6 {[%clk 0:03:03.4]} 15...
Nxe6 {[%clk 0:03:05.3]} 16. Bb5 {[%clk 0:03:03.8]} 16... Nxd4 {[%clk 0:02:56.6]}
17. Nxd4 {[%clk 0:02:54.2]} 17... Nxe4 {[%clk 0:02:57]} 18. Nce2 {[%clk
0:02:39.1]} 18... Rf8 {[%clk 0:02:45.8]} 19. Rc1 {[%clk 0:02:36.6]} 19... Qf6
{[%clk 0:02:40.6]} 20. Rc7 {[%clk 0:02:29.7]} 20... a6 {[%clk 0:02:41.7]} 21.
Bc6 {[%clk 0:02:21.6]} 21... Nc3 {[%clk 0:02:40.7]} 22. Qd2 {[%clk 0:02:12.9]}
22... Nxe2+ {[%clk 0:02:38.6]} 23. Nxe2 {[%clk 0:02:14.8]} 23... Bc8 {[%clk
0:02:39.4]} 24. Rd1 {[%clk 0:02:13.4]} 24... Qd8 {[%clk 0:02:37.1]} 25. Qxd6
{[%clk 0:02:13.3]} 25... Qh4 {[%clk 0:02:32.9]} 26. Bd5 {[%clk 0:02:06]} 26...
Bg4 {[%clk 0:02:30.2]} 27. Bxf7+ {[%clk 0:01:51.6]} 27... Kh8 {[%clk 0:02:30.2]}
28. Ng3 {[%clk 0:01:50.5]} 28... Rbd8 {[%clk 0:02:28.8]} 29. Qxd8 {[%clk
0:01:39.2]} 29... Rxd8 {[%clk 0:02:25.7]} 30. Rdc1 {[%clk 0:01:40.8]} 30... Bd4+
{[%clk 0:02:24]} 31. Kh1 {[%clk 0:01:41.6]} 31... Be3 {[%clk 0:02:24.6]} 32. Re1
{[%clk 0:01:39.6]} 32... Bxf4 {[%clk 0:02:25.5]} 33. Kg1 {[%clk 0:01:22]} 33...
Bxc7 {[%clk 0:02:25.9]} 0-1

[Event "*** Titled Tuesday Blitz"]
[Site "Chess.com"]
[Date "2018.08.07"]
[Round "10"]
[White "rikyshi"]
[Black "Perecke"]
[Result "1-0"]
[WhiteElo "2195"]
[BlackElo "1914"]
[TimeControl "180+2"]
[EndTime "15:16:54 PDT"]
[Termination "rikyshi won by resignation"]

1. d4 {[%clk 0:03:01.9]} 1... d5 {[%clk 0:03:00.7]} 2. c4 {[%clk 0:03:02.7]}
2... e6 {[%clk 0:03:01.1]} 3. Nc3 {[%clk 0:03:03.6]} 3... Nf6 {[%clk 0:03:02.2]}
4. cxd5 {[%clk 0:03:05]} 4... exd5 {[%clk 0:02:59.9]} 5. Bg5 {[%clk 0:03:06.1]}
5... Be7 {[%clk 0:03:00.6]} 6. Qc2 {[%clk 0:03:07]} 6... O-O {[%clk 0:03:00.2]}
7. e3 {[%clk 0:03:07.2]} 7... h6 {[%clk 0:03:01.3]} 8. Bh4 {[%clk 0:03:06.7]}
8... c6 {[%clk 0:03:02.3]} 9. Bd3 {[%clk 0:03:07.2]} 9... Nbd7 {[%clk
0:03:00.5]} 10. Nge2 {[%clk 0:03:07.6]} 10... Re8 {[%clk 0:02:59.4]} 11. O-O
{[%clk 0:02:59.2]} 11... Ne4 {[%clk 0:03:00.4]} 12. Bxe7 {[%clk 0:02:55.6]}
12... Qxe7 {[%clk 0:03:00.8]} 13. Rae1 {[%clk 0:02:55.1]} 13... f5 {[%clk
0:02:49.6]} 14. f3 {[%clk 0:02:52.5]} 14... Nd6 {[%clk 0:02:45.2]} 15. Ng3
{[%clk 0:02:26.6]} 15... g6 {[%clk 0:02:45]} 16. e4 {[%clk 0:02:11.6]} 16...
dxe4 {[%clk 0:02:45.5]} 17. fxe4 {[%clk 0:02:12.6]} 17... fxe4 {[%clk
0:02:30.3]} 18. Ncxe4 {[%clk 0:02:04.3]} 18... Nf5 {[%clk 0:01:35.5]} 19. Nxf5
{[%clk 0:01:52.7]} 19... gxf5 {[%clk 0:01:37.4]} 20. Rxf5 {[%clk 0:01:52.9]}
20... Kg7 {[%clk 0:01:32.7]} 21. Ref1 {[%clk 0:01:49.4]} 21... Nf8 {[%clk
0:01:20.9]} 22. Rf7+ {[%clk 0:01:30.3]} 22... Qxf7 {[%clk 0:01:20.6]} 23. Rxf7+
{[%clk 0:01:32.2]} 23... Kxf7 {[%clk 0:01:22.2]} 24. Nd6+ {[%clk 0:01:30.8]}
24... Ke7 {[%clk 0:01:22.8]} 1-0

[Event "*** Titled Tuesday Blitz"]
[Site "Chess.com"]
[Date "2018.08.07"]
[Round "10"]
[White "nOcHeaTiNgKiD"]
[Black "djano"]
[Result "1-0"]
[WhiteElo "2387"]
[BlackElo "2364"]
[TimeControl "180+2"]
[EndTime "15:17:23 PDT"]
[Termination "nOcHeaTiNgKiD won by resignation"]

1. e4 {[%clk 0:03:01.9]} 1... c5 {[%clk 0:02:59.7]} 2. a3 {[%clk 0:03:02.8]}
2... g6 {[%clk 0:02:57.3]} 3. Bc4 {[%clk 0:03:03.3]} 3... Bg7 {[%clk 0:02:58.2]}
4. Nc3 {[%clk 0:03:04.4]} 4... e6 {[%clk 0:02:58.8]} 5. d3 {[%clk 0:03:05.7]}
5... Ne7 {[%clk 0:02:59]} 6. Ba2 {[%clk 0:03:06.9]} 6... O-O {[%clk 0:02:59.7]}
7. h4 {[%clk 0:03:07]} 7... h5 {[%clk 0:02:59.7]} 8. g4 {[%clk 0:03:07.5]} 8...
hxg4 {[%clk 0:02:49.8]} 9. h5 {[%clk 0:03:08]} 9... f5 {[%clk 0:02:39.6]} 10.
hxg6 {[%clk 0:03:05.9]} 10... Nxg6 {[%clk 0:02:35.8]} 11. exf5 {[%clk
0:03:04.3]} 11... Nh4 {[%clk 0:02:21.2]} 12. Qxg4 {[%clk 0:03:01]} 12... Nxf5
{[%clk 0:02:20.3]} 13. Bg5 {[%clk 0:02:56.3]} 13... Qe8 {[%clk 0:02:20.5]} 14.
O-O-O {[%clk 0:02:43]} 14... Nc6 {[%clk 0:02:21.4]} 15. Nf3 {[%clk 0:02:19.6]}
15... b5 {[%clk 0:02:07.6]} 16. Rdg1 {[%clk 0:02:14.4]} 16... b4 {[%clk
0:02:06.7]} 17. Ne4 {[%clk 0:02:15.1]} 17... Qg6 {[%clk 0:02:01.1]} 18. Qh3
{[%clk 0:01:29.9]} 18... bxa3 {[%clk 0:01:33.7]} 19. Bf6 {[%clk 0:01:11.2]}
19... Rxf6 {[%clk 0:01:29.1]} 20. Rxg6 {[%clk 0:01:10.7]} 20... Rxg6 {[%clk
0:01:29.8]} 21. Qh7+ {[%clk 0:01:11.5]} 21... Kf7 {[%clk 0:01:28.7]} 22. Nfg5+
{[%clk 0:01:11.9]} 22... Ke7 {[%clk 0:01:28.3]} 23. Qxg6 {[%clk 0:01:12.1]}
23... axb2+ {[%clk 0:01:29.5]} 24. Kb1 {[%clk 0:01:12.4]} 24... Nb4 {[%clk
0:01:28.8]} 25. Rh7 {[%clk 0:01:08.6]} 25... Nxa2 {[%clk 0:01:26.2]} 26. Rxg7+
{[%clk 0:01:04.8]} 26... Nxg7 {[%clk 0:01:26]} 27. Qxg7+ {[%clk 0:01:06.7]} 1-0

[Event "*** Titled Tuesday Blitz"]
[Site "Chess.com"]
[Date "2018.08.07"]
[Round "10"]
[White "norwaytoadog"]
[Black "fidetrainerNET"]
[Result "1-0"]
[WhiteElo "2127"]
[BlackElo "1927"]
[TimeControl "180+2"]
[EndTime "15:17:23 PDT"]
[Termination "norwaytoadog won by resignation"]

1. e4 {[%clk 0:03:01.9]} 1... c5 {[%clk 0:03:01.9]} 2. Nf3 {[%clk 0:03:01.8]}
2... d6 {[%clk 0:02:59]} 3. Bb5+ {[%clk 0:03:01]} 3... Nd7 {[%clk 0:02:58.9]} 4.
d4 {[%clk 0:03:01.1]} 4... cxd4 {[%clk 0:02:58.9]} 5. Qxd4 {[%clk 0:03:02.1]}
5... e5 {[%clk 0:02:57.1]} 6. Qd3 {[%clk 0:03:01.2]} 6... Nf6 {[%clk 0:02:56.3]}
7. Bg5 {[%clk 0:02:59.7]} 7... Be7 {[%clk 0:02:53.3]} 8. c4 {[%clk 0:02:55.5]}
8... O-O {[%clk 0:02:47.6]} 9. Bxd7 {[%clk 0:02:55.5]} 9... Bxd7 {[%clk
0:02:42.7]} 10. Nc3 {[%clk 0:02:55.7]} 10... Bc6 {[%clk 0:02:43.3]} 11. Bxf6
{[%clk 0:02:52]} 11... Bxf6 {[%clk 0:02:43.6]} 12. O-O {[%clk 0:02:48.4]} 12...
Qb6 {[%clk 0:02:43.9]} 13. b3 {[%clk 0:02:40.5]} 13... Rfd8 {[%clk 0:02:42.8]}
14. Rfd1 {[%clk 0:02:33.7]} 14... Rac8 {[%clk 0:02:39.3]} 15. Rac1 {[%clk
0:02:27.9]} 15... Qa5 {[%clk 0:02:26.6]} 16. h3 {[%clk 0:02:13.9]} 16... h6
{[%clk 0:02:17.9]} 17. Nh2 {[%clk 0:02:10]} 17... g6 {[%clk 0:02:14.3]} 18. Ng4
{[%clk 0:02:06.4]} 18... Bg7 {[%clk 0:02:14.5]} 19. Ne3 {[%clk 0:02:06.4]} 19...
Kh7 {[%clk 0:02:08.5]} 20. Ned5 {[%clk 0:01:58]} 20... Rd7 {[%clk 0:02:03.4]}
21. a4 {[%clk 0:01:53]} 21... Qd8 {[%clk 0:02:02.3]} 22. b4 {[%clk 0:01:49.3]}
22... Qh4 {[%clk 0:02:01.2]} 23. b5 {[%clk 0:01:41.2]} 23... Bxd5 {[%clk
0:01:58.7]} 24. Nxd5 {[%clk 0:01:42.3]} 24... b6 {[%clk 0:01:58.2]} 25. Rc3
{[%clk 0:01:33.4]} 25... Rf8 {[%clk 0:01:57.9]} 26. Ra3 {[%clk 0:01:24.2]} 26...
f5 {[%clk 0:01:56.6]} 27. exf5 {[%clk 0:01:24.6]} 27... gxf5 {[%clk 0:01:57]}
28. a5 {[%clk 0:01:20.7]} 28... e4 {[%clk 0:01:55.6]} 29. Qe3 {[%clk 0:01:10.9]}
29... bxa5 {[%clk 0:01:43.2]} 30. Rxa5 {[%clk 0:01:10.5]} 30... Qg4 {[%clk
0:01:43.7]} 1-0

[Event "*** Titled Tuesday Blitz"]
[Site "Chess.com"]
[Date "2018.08.07"]
[Round "10"]
[White "JozefKneht"]
[Black "JonahWillow"]
[Result "0-1"]
[WhiteElo "2349"]
[BlackElo "2686"]
[TimeControl "180+2"]
[EndTime "15:17:31 PDT"]
[Termination "JonahWillow won by resignation"]

1. d4 {[%clk 0:03:01.9]} 1... Nf6 {[%clk 0:03:01.1]} 2. Bf4 {[%clk 0:03:01.6]}
2... e6 {[%clk 0:03:02.1]} 3. e3 {[%clk 0:03:01.4]} 3... c5 {[%clk 0:03:03.7]}
4. c3 {[%clk 0:03:02.3]} 4... cxd4 {[%clk 0:02:58.9]} 5. exd4 {[%clk 0:03:04.2]}
5... Be7 {[%clk 0:02:56]} 6. Nf3 {[%clk 0:03:04.1]} 6... O-O {[%clk 0:02:56.6]}
7. Bd3 {[%clk 0:03:04.3]} 7... b6 {[%clk 0:02:57.2]} 8. Nbd2 {[%clk 0:03:04.6]}
8... Ba6 {[%clk 0:02:56]} 9. Bxa6 {[%clk 0:03:03.5]} 9... Nxa6 {[%clk
0:02:56.8]} 10. O-O {[%clk 0:03:03.7]} 10... d6 {[%clk 0:02:51]} 11. Qe2 {[%clk
0:03:02.9]} 11... Nc7 {[%clk 0:02:51.8]} 12. Ne4 {[%clk 0:03:03.4]} 12... Ncd5
{[%clk 0:02:49.9]} 13. Bg3 {[%clk 0:03:02.6]} 13... Nxe4 {[%clk 0:02:50.1]} 14.
Qxe4 {[%clk 0:03:04.4]} 14... Nf6 {[%clk 0:02:51.7]} 15. Qe2 {[%clk 0:03:04.4]}
15... Re8 {[%clk 0:02:49.9]} 16. Rfe1 {[%clk 0:03:03.8]} 16... Bf8 {[%clk
0:02:51]} 17. Qb5 {[%clk 0:03:02.8]} 17... Qd7 {[%clk 0:02:47.3]} 18. Qxd7
{[%clk 0:03:03]} 18... Nxd7 {[%clk 0:02:49.2]} 19. Re2 {[%clk 0:03:03.2]} 19...
Rac8 {[%clk 0:02:45.6]} 20. Rae1 {[%clk 0:03:00.9]} 20... d5 {[%clk 0:02:44.6]}
21. Ne5 {[%clk 0:03:01.4]} 21... Nxe5 {[%clk 0:02:45.4]} 22. Bxe5 {[%clk
0:03:03.3]} 22... b5 {[%clk 0:02:46.1]} 23. a3 {[%clk 0:03:02.3]} 23... a5
{[%clk 0:02:45]} 24. Rb1 {[%clk 0:02:57.2]} 24... Rc4 {[%clk 0:02:44.9]} 25. h3
{[%clk 0:02:53.6]} 25... Rec8 {[%clk 0:02:45]} 26. Kh2 {[%clk 0:02:52.7]} 26...
f6 {[%clk 0:02:44.1]} 27. Bf4 {[%clk 0:02:51.6]} 27... Kf7 {[%clk 0:02:44.9]}
28. Bd2 {[%clk 0:02:51.1]} 28... Bd6+ {[%clk 0:02:44.2]} 29. g3 {[%clk 0:02:50]}
29... R4c6 {[%clk 0:02:44]} 30. Kg2 {[%clk 0:02:51.1]} 30... b4 {[%clk
0:02:40.4]} 31. axb4 {[%clk 0:02:51.6]} 31... axb4 {[%clk 0:02:41.7]} 32. f3
{[%clk 0:02:45.2]} 32... Rb8 {[%clk 0:02:41.4]} 33. Rc1 {[%clk 0:02:42.6]} 33...
Ra8 {[%clk 0:02:38.1]} 34. cxb4 {[%clk 0:02:35.8]} 34... Rxc1 {[%clk 0:02:27.6]}
35. Bxc1 {[%clk 0:02:36.3]} 35... Rc8 {[%clk 0:02:29.3]} 36. Bd2 {[%clk
0:02:36.6]} 36... Rc2 {[%clk 0:02:29.8]} 37. Kf2 {[%clk 0:02:27.2]} 37... Rxb2
{[%clk 0:02:30.9]} 38. Bc3 {[%clk 0:02:24.4]} 38... Rb3 {[%clk 0:02:30.9]} 39.
Bd2 {[%clk 0:02:24.7]} 39... Bxb4 {[%clk 0:02:31.1]} 40. Bxb4 {[%clk 0:02:25.6]}
40... Rxb4 {[%clk 0:02:33]} 41. Ke3 {[%clk 0:02:25.9]} 41... e5 {[%clk 0:02:33]}
42. dxe5 {[%clk 0:02:26.6]} 42... fxe5 {[%clk 0:02:33.8]} 43. Rd2 {[%clk
0:02:25.9]} 43... Ke6 {[%clk 0:02:34.4]} 44. Rc2 {[%clk 0:02:21.6]} 44... Rb3+
{[%clk 0:02:34.4]} 45. Kf2 {[%clk 0:02:21.7]} 45... Rb7 {[%clk 0:02:30.1]} 46.
Rc6+ {[%clk 0:02:22]} 46... Kf5 {[%clk 0:02:29.1]} 47. Ke3 {[%clk 0:02:20.1]}
47... d4+ {[%clk 0:02:29.1]} 48. Kf2 {[%clk 0:02:19.8]} 48... Rb2+ {[%clk
0:02:29.9]} 49. Ke1 {[%clk 0:02:19.3]} 49... Rg2 {[%clk 0:02:27.6]} 50. g4+
{[%clk 0:02:19.5]} 50... Kf4 {[%clk 0:02:29.1]} 51. Re6 {[%clk 0:02:19.2]} 51...
d3 {[%clk 0:02:26.6]} 52. Re7 {[%clk 0:02:18.2]} 52... h6 {[%clk 0:02:21.1]} 53.
Rf7+ {[%clk 0:02:18.3]} 53... Ke3 {[%clk 0:02:20.9]} 54. Kf1 {[%clk 0:02:19.4]}
54... Rf2+ {[%clk 0:02:19.3]} 55. Kg1 {[%clk 0:02:17.7]} 55... Rxf3 {[%clk
0:02:18.6]} 56. Re7 {[%clk 0:02:17]} 56... e4 {[%clk 0:02:19.4]} 0-1

[Event "*** Titled Tuesday Blitz"]
[Site "Chess.com"]
[Date "2018.08.07"]
[Round "10"]
[White "Manukyan_Artak"]
[Black "murmah2003"]
[Result "1-0"]
[WhiteElo "2335"]
[BlackElo "2536"]
[TimeControl "180+2"]
[EndTime "15:17:49 PDT"]
[Termination "Manukyan_Artak won by resignation"]

1. e4 {[%clk 0:03:01.9]} 1... c5 {[%clk 0:03:00.9]} 2. Nf3 {[%clk 0:03:02.4]}
2... d6 {[%clk 0:03:00.1]} 3. Bb5+ {[%clk 0:03:02.3]} 3... Bd7 {[%clk
0:02:59.7]} 4. Bxd7+ {[%clk 0:03:03.1]} 4... Nxd7 {[%clk 0:03:01.6]} 5. c4
{[%clk 0:03:05]} 5... Ngf6 {[%clk 0:02:54.3]} 6. Nc3 {[%clk 0:03:05.3]} 6... Rc8
{[%clk 0:02:42.7]} 7. O-O {[%clk 0:03:03.6]} 7... g6 {[%clk 0:02:37.7]} 8. d3
{[%clk 0:02:59.2]} 8... Bg7 {[%clk 0:02:38.4]} 9. Rb1 {[%clk 0:02:59.1]} 9... a6
{[%clk 0:01:51.4]} 10. a3 {[%clk 0:02:59]} 10... O-O {[%clk 0:01:50.8]} 11. Bg5
{[%clk 0:02:52.5]} 11... e6 {[%clk 0:01:29.3]} 12. Qd2 {[%clk 0:02:52.2]} 12...
Qc7 {[%clk 0:01:18]} 13. Bh6 {[%clk 0:02:51.4]} 13... Ne5 {[%clk 0:01:14]} 14.
Ne1 {[%clk 0:02:45.5]} 14... Rfd8 {[%clk 0:00:44.8]} 15. Bxg7 {[%clk 0:02:45.7]}
15... Kxg7 {[%clk 0:00:45]} 16. f4 {[%clk 0:02:45.1]} 16... Nc6 {[%clk
0:00:45.3]} 17. f5 {[%clk 0:02:40.9]} 17... exf5 {[%clk 0:00:37.3]} 18. exf5
{[%clk 0:02:41.6]} 18... Nd4 {[%clk 0:00:28.8]} 19. fxg6 {[%clk 0:02:40.1]}
19... Qe7 {[%clk 0:00:23.7]} 20. gxf7 {[%clk 0:02:32.8]} 20... h6 {[%clk
0:00:08.1]} 21. Nf3 {[%clk 0:02:21]} 21... Rf8 {[%clk 0:00:06.6]} 22. Rbe1
{[%clk 0:02:13.6]} 22... Nxf3+ {[%clk 0:00:06.4]} 23. Rxf3 {[%clk 0:02:14.1]}
23... Qxf7 {[%clk 0:00:06.4]} 24. Nd5 {[%clk 0:02:09.1]} 24... Qh5 {[%clk
0:00:03.3]} 25. Re7+ {[%clk 0:02:04.5]} 1-0

[Event "*** Titled Tuesday Blitz"]
[Site "Chess.com"]
[Date "2018.08.07"]
[Round "10"]
[White "PaulfromSPb"]
[Black "luca_va99"]
[Result "1-0"]
[WhiteElo "2584"]
[BlackElo "2407"]
[TimeControl "180+2"]
[EndTime "15:17:58 PDT"]
[Termination "PaulfromSPb won by resignation"]

1. e4 {[%clk 0:03:00.9]} 1... e6 {[%clk 0:02:59.3]} 2. d4 {[%clk 0:03:01.5]}
2... d5 {[%clk 0:02:59.7]} 3. Nd2 {[%clk 0:03:02.6]} 3... Nf6 {[%clk 0:03:00.2]}
4. e5 {[%clk 0:03:02.9]} 4... Nfd7 {[%clk 0:03:01.1]} 5. Bd3 {[%clk 0:03:04.1]}
5... c5 {[%clk 0:03:02.2]} 6. c3 {[%clk 0:03:05.4]} 6... b6 {[%clk 0:03:03.4]}
7. a4 {[%clk 0:02:51.1]} 7... Ba6 {[%clk 0:03:01.1]} 8. Bb5 {[%clk 0:02:51.5]}
8... Bxb5 {[%clk 0:03:00.6]} 9. axb5 {[%clk 0:02:52.3]} 9... a5 {[%clk
0:03:01.8]} 10. Ne2 {[%clk 0:02:47.3]} 10... Be7 {[%clk 0:02:59.7]} 11. Nf3
{[%clk 0:02:43.1]} 11... O-O {[%clk 0:02:59.3]} 12. O-O {[%clk 0:02:42.8]} 12...
f5 {[%clk 0:02:59.4]} 13. exf6 {[%clk 0:02:42.8]} 13... Bxf6 {[%clk 0:02:40.5]}
14. Nf4 {[%clk 0:02:40.8]} 14... Re8 {[%clk 0:02:34.3]} 15. Re1 {[%clk
0:02:39.1]} 15... Nf8 {[%clk 0:02:34.7]} 16. dxc5 {[%clk 0:02:14.2]} 16... bxc5
{[%clk 0:02:36.6]} 17. Nxd5 {[%clk 0:02:14.6]} 17... Nbd7 {[%clk 0:02:20.3]} 18.
Nxf6+ {[%clk 0:02:10]} 18... Qxf6 {[%clk 0:02:22.2]} 19. Bg5 {[%clk 0:02:06.6]}
19... Qg6 {[%clk 0:02:21.1]} 20. Be3 {[%clk 0:02:03.4]} 20... Reb8 {[%clk
0:01:57.8]} 21. c4 {[%clk 0:02:02.4]} 21... Qf6 {[%clk 0:01:55.8]} 22. b3 {[%clk
0:01:58.1]} 22... Qf5 {[%clk 0:01:31.2]} 23. Qd2 {[%clk 0:01:52.5]} 23... a4
{[%clk 0:01:24.9]} 24. Rxa4 {[%clk 0:01:49.6]} 24... Rxa4 {[%clk 0:01:25.2]} 25.
bxa4 {[%clk 0:01:50.4]} 25... Nb6 {[%clk 0:01:26.3]} 26. Qd6 {[%clk 0:01:45.6]}
26... Rb7 {[%clk 0:01:09.9]} 27. Qc6 {[%clk 0:01:27.5]} 27... Qf7 {[%clk
0:00:48.9]} 28. Ne5 {[%clk 0:01:26.1]} 1-0

[Event "*** Titled Tuesday Blitz"]
[Site "Chess.com"]
[Date "2018.08.07"]
[Round "10"]
[White "m3alam"]
[Black "ShadowJolteon"]
[Result "0-1"]
[WhiteElo "2213"]
[BlackElo "2232"]
[TimeControl "180+2"]
[EndTime "15:18:12 PDT"]
[Termination "ShadowJolteon won by resignation"]

1. d4 {[%clk 0:03:01.6]} 1... Nf6 {[%clk 0:02:59.9]} 2. Nf3 {[%clk 0:03:02.5]}
2... e6 {[%clk 0:02:59.1]} 3. g3 {[%clk 0:03:04]} 3... b6 {[%clk 0:02:59]} 4.
Bg2 {[%clk 0:03:05.5]} 4... Bb7 {[%clk 0:02:58]} 5. O-O {[%clk 0:03:06.9]} 5...
Be7 {[%clk 0:02:59.4]} 6. c4 {[%clk 0:03:05.3]} 6... O-O {[%clk 0:03:00.8]} 7.
b3 {[%clk 0:03:04.5]} 7... d5 {[%clk 0:02:54.1]} 8. Ne5 {[%clk 0:02:59.6]} 8...
c5 {[%clk 0:02:46.2]} 9. dxc5 {[%clk 0:02:57.7]} 9... Qc7 {[%clk 0:02:43.9]} 10.
Bb2 {[%clk 0:02:33]} 10... bxc5 {[%clk 0:02:44]} 11. cxd5 {[%clk 0:02:27.6]}
11... exd5 {[%clk 0:02:42.1]} 12. Nc3 {[%clk 0:02:26.1]} 12... d4 {[%clk
0:02:39.5]} 13. Bxb7 {[%clk 0:02:21.6]} 13... Qxb7 {[%clk 0:02:41.4]} 14. Na4
{[%clk 0:02:19.8]} 14... Nbd7 {[%clk 0:02:36]} 15. Nxd7 {[%clk 0:02:16.9]} 15...
Qxd7 {[%clk 0:02:37.9]} 16. Qd3 {[%clk 0:02:12.4]} 16... Qh3 {[%clk 0:02:35.8]}
17. Qf3 {[%clk 0:02:12.3]} 17... Rac8 {[%clk 0:02:25.6]} 18. Rac1 {[%clk
0:02:12.2]} 18... Rfe8 {[%clk 0:02:21.3]} 19. Rc2 {[%clk 0:02:02.5]} 19... Bd6
{[%clk 0:02:12.5]} 20. Rfc1 {[%clk 0:02:01.6]} 20... Ng4 {[%clk 0:02:10.6]} 21.
Qg2 {[%clk 0:02:01.6]} 21... Qh6 {[%clk 0:02:08.8]} 22. h3 {[%clk 0:01:57.2]}
22... Nxf2 {[%clk 0:01:35.7]} 23. Qxf2 {[%clk 0:01:40.9]} 23... Re3 {[%clk
0:01:35.6]} 24. Rxc5 {[%clk 0:01:38]} 24... Bxc5 {[%clk 0:01:33.8]} 25. Rxc5
{[%clk 0:01:38.2]} 25... Rxc5 {[%clk 0:01:33.2]} 26. Nxc5 {[%clk 0:01:38.5]}
26... Qxh3 {[%clk 0:01:33.5]} 27. Ne4 {[%clk 0:01:14.3]} 27... Qg4 {[%clk
0:01:32.2]} 28. Qf4 {[%clk 0:00:40.1]} 28... Qxf4 {[%clk 0:01:23.6]} 29. gxf4
{[%clk 0:00:41.6]} 29... Rxe4 {[%clk 0:01:24.9]} 30. Kf2 {[%clk 0:00:41.5]}
30... Rxf4+ {[%clk 0:01:25.9]} 0-1